fUSD/lending_fUSD_20260406
["ID","MTS","AMOUNT","RATE_DAILY","PERIOD"]
[419863305,1775434210583,5976.86116385,0.0001,2]
[419863306,1775434226778,-10994.0,0.000107,2]
[419863327,1775434233810,-22524.66566522,0.000107,2]
[419863328,1775434233822,-6108.63899614,0.000107,2]
[419863329,1775434233834,-797.59445327,0.000107,2]
[419863330,1775434233845,-765.71157577,0.000107,2]
[419863331,1775434233856,-2279.77003804,0.000107,2]
[419863332,1775434233867,-1485.18683167,0.000107,2]
[419863333,1775434233886,-68100.54727047,0.000107,2]
[419863334,1775434233897,-794.9877224,0.000107,2]
[419863335,1775434233982,-4267.36355357,0.000107,2]
[419863336,1775434234019,-1337.70986208,0.000107,2]
[419863337,1775434234031,-1249.39039257,0.000107,2]
[419863338,1775434234042,-500.0,0.000107,2]
[419863339,1775434234061,-1148.76047939,0.000107,2]
[419863340,1775434234072,-1322.37552332,0.000107,2]
[419863344,1775434238200,-20060.49647241,0.000107,2]
[419863346,1775434238265,-422.58467,0.000107,2]
[419863347,1775434238276,-2589.49791791,0.000107,2]
[419863348,1775434238346,-55028.17169495,0.000107,2]
[419863349,1775434238368,-5194.8976806,0.000107,2]
[419863360,1775434241806,-1049.53799999,0.000107,2]
[419863364,1775434241832,-853.11139132,0.000107,2]
[419863366,1775434241843,-719.0,0.000107,2]
[419863465,1775434243387,-4158.95544,0.000107,2]
[419863466,1775434243498,-10377.04916858,0.000107,2]
[419863467,1775434243508,-611.94845348,0.00012831,2]
[419863468,1775434243517,-344.0,0.00012931,2]
[419863469,1775434243527,-250.0,0.00012965,2]
[419863470,1775434243536,-300.0,0.00012998,2]
[419863471,1775434243546,-300.0,0.00012998,2]
[419863472,1775434243555,-1200.0,0.00012998,2]
[419863473,1775434243564,-4208.38767409,0.00012999,2]
[419863474,1775434243574,-480.0,0.00012999,2]
[419863475,1775434243583,-278.0,0.00012999,2]
[419863476,1775434243592,-3795.62194136,0.00013,7]
[419863477,1775434243654,-11890.46956227,0.00013,7]
[419863478,1775434243663,-500.0,0.00013011,2]
[419863479,1775434243673,-600.0,0.00013011,2]
[419863480,1775434243682,-600.0,0.00013015,2]
[419863481,1775434243692,-507.0,0.00013111,2]
[419863482,1775434243701,-150.0,0.000133,2]
[419863483,1775434243710,-153.48,0.00013365,2]
[419863484,1775434243720,-3000.0,0.00013534,2]
[419863485,1775434243730,-2000.0,0.00013534,2]
[419863486,1775434243739,-163.08,0.00013647,2]
[419863487,1775434243749,-166.66,0.00013699,2]
[419863488,1775434243759,-1852.42,0.00013744,2]
[419863489,1775434243769,-166.66,0.00013913,2]
[419863490,1775434243779,-860.15423297,0.00014006,2]
[419863491,1775434243788,-150.0,0.00014066,2]
[419863492,1775434243798,-6263.95,0.00014067,2]
[419863493,1775434243808,-160.0,0.00014067,2]
[419863494,1775434243817,-166.66,0.00014127,2]
[419863495,1775434243827,-507.0,0.0001419,2]
[419863496,1775434243837,-300.0,0.00014224,2]
[419863497,1775434243846,-300.0,0.00014224,2]
[419863498,1775434243856,-300.0,0.00014224,2]
[419863499,1775434243866,-300.0,0.00014224,2]
[419863500,1775434243876,-425.2863973,0.00014224,2]
[419863501,1775434243886,-2500.0,0.00014224,2]
[419863502,1775434243896,-2500.0,0.00014224,2]
[419863503,1775434243906,-2500.0,0.00014224,2]
[419863504,1775434243916,-2500.0,0.00014224,2]
[419863505,1775434243926,-2500.0,0.00014224,2]
[419863506,1775434243936,-250.0,0.00014224,2]
[419863507,1775434243946,-300.0,0.00014224,2]
[419863508,1775434243956,-500.0,0.00014224,2]
[419863509,1775434243965,-500.0,0.00014224,2]
[419863510,1775434243975,-500.0,0.00014224,2]
[419863511,1775434243985,-500.0,0.00014224,2]
[419863512,1775434243995,-595.82296535,0.00014224,2]
[419863513,1775434244004,-250.0,0.00014224,2]
[419863514,1775434244014,-500.0,0.00014229,2]
[419863515,1775434244024,-500.0,0.00014229,2]
[419863516,1775434244034,-276.03637969,0.00014229,2]
[419863517,1775434244043,-421.63338926,0.00014229,2]
[419863518,1775434244053,-187304.8720852,0.0001423,2]
[419863525,1775434246226,-678.09499637,0.0001423,2]
[419863526,1775434246331,-601.96490377,0.0001423,2]
[419863527,1775434246340,-4768.92885423,0.0001423,2]
[419863528,1775434246441,-12241.63654025,0.0001423,2]
[419863529,1775434246550,-332.13003284,0.0001423,2]
[419863530,1775434246562,-10849.22418446,0.0001423,2]
[419863531,1775434246605,-1099.91733865,0.0001423,2]
[419863532,1775434246866,-221897.9597571,0.0001423,2]
[419863537,1775434333457,1336.0,0.000105,5]
[419863538,1775434345786,151.0,0.000105,2]
[419863539,1775434350870,166.0,0.000105,2]
[419863576,1775434451951,151.0,0.000105,2]
[419863580,1775434505607,158.0,0.000105,2]
[419863581,1775434506360,151.0,0.000105,2]
[419863582,1775434568544,151.0,0.000105,2]
[419863583,1775434629034,151.0,0.000105,2]
[419863584,1775434688906,151.0,0.000105,2]
[419863585,1775434811524,151.0,0.000105,2]
[419863586,1775434812687,159.0,0.000105,2]
[419863588,1775435107127,159.0,0.000105,2]
[419863589,1775435240092,-297.53820728,0.00012898,2]
[419863590,1775435240117,-344.0,0.00012898,2]
[419863591,1775435240140,-250.0,0.00012924,2]
[419863592,1775435240163,-655.300005,0.00012949,2]
[419863593,1775435240186,-250.0,0.00012969,2]
[419863594,1775435240210,-480.0,0.00012998,2]
[419863595,1775435240235,-1200.0,0.00012998,2]
[419863596,1775435240259,-300.0,0.00012998,2]
[419863597,1775435240289,-150.0,0.00012999,2]
[419863598,1775435240314,-300.0,0.00012999,2]
[419863599,1775435240339,-500.0,0.00013,2]
[419863600,1775435240364,-500.0,0.00013,2]
[419863601,1775435240390,-500.0,0.00013,2]
[419863602,1775435240414,-500.0,0.00013,2]
[419863603,1775435240437,-500.0,0.00013,2]
[419863604,1775435240461,-500.0,0.00013,2]
[419863605,1775435240487,-500.0,0.00013,2]
[419863606,1775435240513,-500.0,0.00013,2]
[419863607,1775435240539,-500.0,0.00013,2]
[419863608,1775435240563,-500.0,0.00013,2]
[419863609,1775435240586,-500.0,0.00013,2]
[419863610,1775435240612,-500.0,0.00013,2]
[419863611,1775435240635,-500.0,0.00013,2]
[419863612,1775435240659,-500.0,0.00013,2]
[419863613,1775435240681,-479.74366376,0.00013,2]
[419863626,1775435433646,-300.0,0.00012999,2]
[419863627,1775435433660,-8.69485293,0.00012999,2]
[419863629,1775435433676,-1191.30514707,0.00012999,2]
[419863630,1775435433692,-300.0,0.00012999,2]
[419863631,1775435433706,-278.0,0.00012999,2]
[419863632,1775435433719,-20.25633624,0.00013,2]
[419863633,1775435433733,-500.0,0.00013,2]
[419863634,1775435433745,-500.0,0.00013,2]
[419863635,1775435433759,-500.0,0.00013,2]
[419863636,1775435433772,-500.0,0.00013,2]
[419863637,1775435433784,-500.0,0.00013,2]
[419863638,1775435433798,-500.0,0.00013,2]
[419863639,1775435433810,-500.0,0.00013,2]
[419863640,1775435433822,-500.0,0.00013,2]
[419863641,1775435433834,-250.0,0.00013,2]
[419863642,1775435433847,-171.61461565,0.00013,2]
[419863643,1775435433861,-160.41431593,0.00013,2]
[419863644,1775435433873,-167.75860427,0.00013,2]
[419863645,1775435433885,-500.0,0.00013,2]
[419863646,1775435433897,-501.0397598,0.00013,2]
[419863647,1775435433909,-260.96,0.00013,2]
[419863648,1775435433923,-507.0,0.00013111,2]
[419863649,1775435433935,-2053.0,0.00013169,2]
[419863650,1775435433949,-1600.0,0.00013186,2]
[419863651,1775435433962,-500.0,0.00013186,2]
[419863653,1775435433974,-260.96,0.00013274,2]
[419863655,1775435433985,-150.0,0.00013364,2]
[419863658,1775435433997,-512.78518872,0.00013365,2]
[419863661,1775435434014,-400.45,0.00013365,2]
[419863665,1775435434050,-360.80856145,0.00013365,2]
[419863668,1775435434064,-834.3403945,0.00013365,2]
[419863671,1775435434103,-3041.25167744,0.00013365,2]
[419863672,1775435434127,-1130.87856688,0.00013365,2]
[419863673,1775435434141,-84.90561101,0.00013365,2]
[419863674,1775435434153,-3000.0,0.00013534,2]
[419863675,1775435434165,-260.96,0.00013548,2]
[419863676,1775435434177,-2000.0,0.00013699,2]
[419863677,1775435434188,-1745.59,0.00013699,2]
[419863678,1775435434201,-523.6,0.00013699,2]
[419863679,1775435434213,-2923.1011063,0.0001393,2]
[419863680,1775435434246,-9585.17121346,0.0001393,2]
[419863681,1775435434257,-611.94845348,0.0001393,2]
[419863682,1775435434269,-453.46,0.00013947,2]
[419863683,1775435434281,-2291.0,0.00014,2]
[419863684,1775435434292,-500.0,0.00014027,2]
[419863685,1775435434304,-500.0,0.00014029,2]
[419863686,1775435434316,-500.0,0.00014029,2]
[419863687,1775435434327,-500.0,0.00014029,2]
[419863688,1775435434339,-296.50842042,0.00014029,2]
[419863689,1775435434351,-33024.725,0.0001403,2]
[419863690,1775435434363,-14915.87183765,0.0001403,2]
[419863691,1775435434377,-938.13866235,0.0001403,2]
[419863692,1775435434389,-924.16454165,0.0001403,2]
[419863701,1775435438425,-725.35,0.0001402,2]
[419863702,1775435438435,-725.35,0.0001402,2]
[419863703,1775435438444,-725.35,0.0001402,2]
[419863704,1775435438453,-725.35,0.0001402,2]
[419863705,1775435438462,-725.35,0.0001402,2]
[419863706,1775435438472,-207.23741029,0.0001402,2]
[419863707,1775435438481,-1575.83545835,0.0001403,2]
[419863708,1775435438491,-47790.52587546,0.0001403,2]
[419863709,1775435438502,-4575.03192083,0.0001403,2]
[419863710,1775435438513,-500.0,0.0001403,2]
[419863711,1775435438528,-653.26929137,0.0001403,2]
[419863712,1775435438643,-2955.92,0.00011507,2]
[419863713,1775435438652,-1553.08,0.0001403,2]
[419863714,1775435438804,-1929.9426192,0.0001403,2]
[419863751,1775435440733,-5340.30074618,0.0001403,2]
[419863752,1775435441057,-624.0438724,0.0001403,2]
[419863753,1775435441325,-20212.28885374,0.0001403,2]
[419863766,1775435443709,-2619.9222051,0.0001403,2]
[419863767,1775435443763,-7688.84606343,0.0001403,2]
[419863773,1775435446585,-6561.94665641,0.0001403,2]
[419863792,1775436250391,2285.79246298,0.00015999,120]
[419863804,1775436631487,-1888.82,0.0001237,2]
[419863805,1775436631497,-161.86,0.00012452,2]
[419863806,1775436631507,-1852.42,0.00012602,2]
[419863807,1775436631516,-382.66903925,0.00012772,2]
[419863808,1775436631526,-1468.71151713,0.0001279,2]
[419863809,1775436631538,-738.86152533,0.0001279,2]
[419863810,1775436631565,-2890.04219866,0.0001279,2]
[419863811,1775436631575,-300.0,0.00012806,2]
[419863812,1775436631584,-1200.0,0.00012807,2]
[419863813,1775436631594,-300.0,0.00012807,2]
[419863814,1775436631603,-2000.0,0.00012808,2]
[419863815,1775436631613,-2903.62803265,0.00012808,2]
[419863816,1775436631622,-500.0,0.00012833,3]
[419863817,1775436631631,-300.0,0.00012999,2]
[419863818,1775436631641,-157.0,0.00013,2]
[419863819,1775436631650,-157.0,0.00013,2]
[419863820,1775436631659,-250.0,0.00013,2]
[419863821,1775436631669,-453.46387187,0.00013004,2]
[419863822,1775436631678,-1500.0,0.0001304,2]
[419863823,1775436631688,-650.53736673,0.00013046,2]
[419863824,1775436631697,-200.0,0.00013109,2]
[419863825,1775436631707,-542.11447227,0.0001332,2]
[419863826,1775436631716,-150.0,0.00013345,2]
[419863827,1775436631726,-156.84,0.00013375,2]
[419863828,1775436631735,-116.80865171,0.00013398,2]
[419863829,1775436631747,-33.19134829,0.00013398,2]
[419863830,1775436631756,-1016.04973675,0.00013399,2]
[419863831,1775436631767,-8067.00672546,0.00013399,2]
[419863832,1775436631778,-67398.15409254,0.00013399,2]
[419863833,1775436631789,-273.719,0.00013399,2]
[419863834,1775436631809,-677.51441206,0.00013399,2]
[419863835,1775436631821,-8703.15238919,0.00013399,2]
[419863836,1775436632484,-400.0,0.00013399,2]
[419863837,1775436632495,-353.98356,0.00013399,2]
[419863838,1775436632506,-700.37599953,0.00013399,2]
[419863839,1775436632545,-1085.84254698,0.00013399,2]
[419863840,1775436632560,-68884.23073749,0.00013399,2]
[419863841,1775436632569,-156.39703094,0.00013399,2]
[419863842,1775436632579,-27849.73107094,0.00013399,2]
[419863843,1775436632588,-2268.38662224,0.00013399,2]
[419863844,1775436632597,-1979.71839249,0.000134,2]
[419863845,1775436632606,-3240.0,0.00013425,2]
[419863846,1775436632615,-304.24245046,0.00013473,2]
[419863847,1775436632624,-500.0,0.00013473,2]
[419863848,1775436632633,-2940.81,0.00013493,2]
[419863849,1775436632643,-2486.4703,0.00013499,2]
[419863850,1775436632652,-1000.0,0.00013499,2]
[419863851,1775436632661,-8514.44792587,0.00013499,2]
[419863852,1775436632676,-681.2439423,0.00013499,2]
[419863853,1775436632753,-1711.23017621,0.00013499,2]
[419863856,1775436637801,-38705.1093591,0.00013499,2]
[419863857,1775436637906,-2159.41324796,0.00013499,2]
[419863894,1775436641135,-448.78681831,0.00013499,2]
[419863895,1775436641148,-1205.49716043,0.00013499,2]
[419863919,1775436646006,-6916.9,0.00013499,2]
[419863980,1775437027225,312100.29037925,0.000161,120]
[419863981,1775437027259,65000.0,0.000161,120]
[419863982,1775437027289,929117.99624436,0.000161,120]
[419863993,1775437652128,-398.89,0.00012404,2]
[419863994,1775437652149,-500.0,0.00012454,2]
[419863995,1775437652169,-253.82,0.00012545,2]
[419863996,1775437652190,-250.0,0.00012682,2]
[419863997,1775437652211,-600.0,0.00012736,2]
[419863998,1775437652230,-296.37090751,0.00012754,2]
[419863999,1775437652251,-530.581,0.00012915,2]
[419864000,1775437652270,-292.74181503,0.00012974,2]
[419864001,1775437652290,-3633.89147079,0.00012999,2]
[419864017,1775437833345,-523.48447467,0.000107,2]
[419864018,1775437833490,-687.88920627,0.000107,2]
[419864019,1775437833502,-971.72153587,0.000107,2]
[419864020,1775437833513,-636.77253227,0.000107,2]
[419864021,1775437833536,-432.84718263,0.000107,2]
[419864022,1775437833547,-10954.64596634,0.000107,2]
[419864023,1775437833565,-1770.0,0.000107,2]
[419864024,1775437833606,-303.8818997,0.000107,2]
[419864025,1775437833617,-3200.41564869,0.000107,2]
[419864026,1775437833628,-385.00293256,0.000107,2]
[419864030,1775437837900,-1114.84785071,0.000107,2]
[419864031,1775437837912,-15060.63390487,0.000107,2]
[419864032,1775437837923,-1784.45215421,0.000107,2]
[419864033,1775437837941,-955.64847406,0.000107,2]
[419864034,1775437837956,-5777.9342784,0.000107,2]
[419864035,1775437837967,-1064.07650341,0.000107,2]
[419864036,1775437838111,-5839.49686524,0.000107,2]
[419864037,1775437838220,-309.14823384,0.000107,2]
[419864038,1775437840207,-40535.06659775,0.000107,2]
[419864039,1775437840216,-574.4962033,0.00012999,2]
[419864040,1775437840226,-3795.62194136,0.00013,7]
[419864041,1775437840235,-2000.0,0.00013,2]
[419864042,1775437840245,-150.0,0.00013098,2]
[419864043,1775437840254,-300.0,0.00013098,2]
[419864044,1775437840263,-300.0,0.00013098,2]
[419864045,1775437840272,-1200.0,0.00013098,2]
[419864046,1775437840281,-2500.0,0.00013099,2]
[419864047,1775437840291,-169.36199739,0.00013099,2]
[419864048,1775437840300,-25064.75796381,0.00013099,2]
[419864049,1775437840309,-2622.03953179,0.00013099,2]
[419864050,1775437840318,-507.0,0.000131,2]
[419864051,1775437840328,-500.0,0.00013151,2]
[419864052,1775437840338,-390.265,0.00013173,2]
[419864053,1775437840347,-500.0,0.00013191,2]
[419864054,1775437840357,-500.0,0.00013191,2]
[419864055,1775437840366,-500.0,0.00013191,2]
[419864056,1775437840375,-500.0,0.00013191,2]
[419864057,1775437840385,-500.0,0.00013191,2]
[419864058,1775437840394,-500.0,0.00013191,2]
[419864059,1775437840403,-500.0,0.00013191,2]
[419864060,1775437840413,-500.0,0.00013191,2]
[419864061,1775437840422,-500.0,0.00013191,2]
[419864062,1775437840431,-200.0,0.00013191,2]
[419864063,1775437840440,-500.0,0.00013191,2]
[419864064,1775437840450,-500.0,0.00013191,2]
[419864065,1775437840459,-151.0,0.00013191,2]
[419864066,1775437840468,-151.0,0.00013191,2]
[419864067,1775437840478,-151.0,0.00013191,2]
[419864068,1775437840487,-151.0,0.00013191,2]
[419864069,1775437840498,-180.68084536,0.00013191,2]
[419864070,1775437840507,-151.0,0.00013191,2]
[419864071,1775437840518,-151.0,0.00013191,2]
[419864072,1775437840527,-151.0,0.00013191,2]
[419864073,1775437840537,-151.0,0.00013191,2]
[419864074,1775437840546,-151.0,0.00013191,2]
[419864075,1775437840556,-151.0,0.00013191,2]
[419864076,1775437840566,-151.0,0.00013191,2]
[419864077,1775437840575,-151.0,0.00013191,2]
[419864078,1775437840585,-151.0,0.00013191,2]
[419864079,1775437840595,-151.0,0.00013191,2]
[419864080,1775437840604,-151.0,0.00013191,2]
[419864081,1775437840613,-162.6917032,0.00013191,2]
[419864082,1775437840623,-500.0,0.00013191,2]
[419864083,1775437840632,-500.0,0.00013191,2]
[419864084,1775437840642,-500.0,0.00013191,2]
[419864085,1775437840651,-500.0,0.00013191,2]
[419864086,1775437840660,-500.0,0.00013191,2]
[419864087,1775437840669,-574.08160509,0.00013191,2]
[419864088,1775437840679,-151.0,0.00013191,2]
[419864089,1775437840688,-9999.99,0.00013198,2]
[419864090,1775437840697,-313.06,0.00013198,2]
[419864091,1775437840707,-1209.51,0.00013198,2]
[419864092,1775437840716,-1842.1,0.00013198,2]
[419864093,1775437840726,-3128.62,0.00013198,2]
[419864094,1775437840735,-6420.95,0.00013198,2]
[419864095,1775437840744,-150.99,0.00013198,2]
[419864096,1775437840753,-9999.99,0.00013198,2]
[419864097,1775437840763,-586.40260315,0.00013198,2]
[419864098,1775437840772,-336668.44397249,0.00013199,2]
[419864106,1775437843253,-6645.55230696,0.00013199,2]
[419864111,1775437846240,-1600.0,0.00012545,2]
[419864112,1775437846249,-4099.99510883,0.00013199,2]
[419864127,1775437911685,14740.289675,0.000161,120]
[419864134,1775438515311,166.0,0.000161,120]
[419864139,1775438843138,-1200.0,0.00011506,2]
[419864140,1775438843159,-300.0,0.00011506,2]
[419864141,1775438843180,-150.0,0.00011506,2]
[419864142,1775438843200,-655.300005,0.00011506,2]
[419864143,1775438843219,-8931.42079349,0.00011507,5]
[419864165,1775439032301,-250.0,0.00011506,2]
[419864166,1775439032318,-230.0,0.00011506,2]
[419864167,1775439032329,-300.0,0.00011506,2]
[419864168,1775439032339,-1200.0,0.00011506,2]
[419864169,1775439032351,-300.0,0.00011506,2]
[419864170,1775439032362,-300.0,0.00011506,2]
[419864171,1775439032375,-319.0,0.00011506,2]
[419864172,1775439032385,-217.96561746,0.00011507,5]
[419864173,1775439032398,-253.46543089,0.00011507,5]
[419864174,1775439032410,-811.50471421,0.00011507,5]
[419864175,1775439032536,-3496.0730683,0.00011507,5]
[419864176,1775439032548,-5880.0,0.00011507,5]
[419864177,1775439032560,-1300.0,0.00011507,5]
[419864178,1775439032573,-3250.0,0.00011507,5]
[419864180,1775439038272,-471.87366345,0.00011507,5]
[419864181,1775439038286,-753.25136983,0.00011507,5]
[419864182,1775439038298,-726.62513053,0.00011507,5]
[419864183,1775439038310,-2871.46202882,0.00011507,5]
[419864184,1775439038322,-1775.91554114,0.00011507,5]
[419864185,1775439038334,-351.40497195,0.00011507,5]
[419864186,1775439038434,-557.1119723,0.00011507,5]
[419864223,1775439040385,-77037.31008303,0.00011507,5]
[419864224,1775439040395,-2748.72,0.00011507,2]
[419864225,1775439040405,-2000.0,0.00012049,2]
[419864227,1775439040414,-1698.01,0.00012105,2]
[419864229,1775439040424,-150.0,0.00012384,2]
[419864231,1775439040433,-500.0,0.00012438,2]
[419864232,1775439040443,-500.0,0.00012438,2]
[419864233,1775439040452,-2622.03953179,0.00012557,2]
[419864235,1775439040461,-150.0,0.000126,2]
[419864237,1775439040470,-420.0,0.00012637,2]
[419864238,1775439040479,-9999.99,0.00012656,2]
[419864239,1775439040488,-313.06,0.00012656,2]
[419864240,1775439040497,-3128.62,0.00012656,2]
[419864241,1775439040506,-150.99,0.00012656,2]
[419864242,1775439040516,-9999.99,0.00012656,2]
[419864243,1775439040525,-1842.1,0.00012656,2]
[419864244,1775439040535,-6420.95,0.00012656,2]
[419864245,1775439040544,-1209.51,0.00012656,2]
[419864246,1775439040553,-1680.0,0.00012656,2]
[419864247,1775439040563,-600.0,0.00012657,2]
[419864248,1775439040572,-5000.0,0.00012657,2]
[419864249,1775439040582,-250.0,0.00012657,2]
[419864250,1775439040591,-250.0,0.00012657,2]
[419864251,1775439040601,-5000.0,0.00012657,2]
[419864252,1775439040610,-250.0,0.00012657,2]
[419864253,1775439040619,-187.95451372,0.00012657,2]
[419864254,1775439040629,-300.0,0.00012657,2]
[419864255,1775439040638,-500.0,0.00012877,2]
[419864256,1775439040648,-2622.03953177,0.00012928,2]
[419864257,1775439040658,-2039.13117931,0.00012998,2]
[419864258,1775439040667,-25506.69718387,0.00012999,2]
[419864259,1775439040677,-169.36199739,0.00012999,2]
[419864260,1775439040686,-250.0,0.00013,2]
[419864261,1775439040696,-500.0,0.00013014,2]
[419864262,1775439040705,-1237.23,0.00013068,14]
[419864263,1775439040715,-235.34469538,0.00013073,2]
[419864264,1775439040725,-500.0,0.00013073,2]
[419864265,1775439040734,-500.0,0.00013073,2]
[419864266,1775439040744,-500.0,0.0001309,2]
[419864267,1775439040753,-500.0,0.0001309,2]
[419864268,1775439040762,-500.0,0.0001309,2]
[419864269,1775439040771,-500.0,0.0001309,2]
[419864270,1775439040781,-218.50620964,0.0001309,2]
[419864271,1775439040791,-500.0,0.0001309,2]
[419864272,1775439040800,-500.0,0.0001309,2]
[419864273,1775439040810,-500.0,0.0001309,2]
[419864274,1775439040819,-500.0,0.0001309,2]
[419864275,1775439040830,-500.0,0.0001309,2]
[419864276,1775439040840,-151.0,0.0001309,2]
[419864277,1775439040849,-500.0,0.0001309,2]
[419864278,1775439040859,-151.0,0.0001309,2]
[419864279,1775439040868,-500.0,0.0001309,2]
[419864280,1775439040877,-151.0,0.0001309,2]
[419864281,1775439040887,-500.0,0.0001309,2]
[419864282,1775439040896,-151.0,0.0001309,2]
[419864283,1775439040906,-200.0,0.0001309,2]
[419864284,1775439040915,-151.0,0.0001309,2]
[419864285,1775439040925,-151.0,0.0001309,2]
[419864286,1775439040934,-151.0,0.0001309,2]
[419864287,1775439040943,-151.0,0.0001309,2]
[419864288,1775439040953,-151.0,0.0001309,2]
[419864289,1775439040962,-151.0,0.0001309,2]
[419864290,1775439040972,-151.0,0.0001309,2]
[419864291,1775439040982,-151.0,0.0001309,2]
[419864292,1775439040991,-151.0,0.0001309,2]
[419864293,1775439041000,-151.0,0.0001309,2]
[419864294,1775439041010,-162.6917032,0.0001309,2]
[419864295,1775439041020,-151.0,0.0001309,2]
[419864296,1775439041029,-500.0,0.0001309,2]
[419864297,1775439041039,-180.68084536,0.0001309,2]
[419864298,1775439041048,-500.0,0.0001309,2]
[419864299,1775439041058,-500.0,0.0001309,2]
[419864300,1775439041067,-500.0,0.0001309,2]
[419864301,1775439041077,-500.0,0.0001309,2]
[419864302,1775439041086,-574.08160509,0.0001309,2]
[419864303,1775439041095,-151.0,0.0001309,2]
[419864304,1775439041104,-200.0,0.00013093,2]
[419864305,1775439041113,-161.604585,0.00013095,2]
[419864306,1775439041123,-1000.0,0.00013099,2]
[419864307,1775439041133,-507.0,0.000131,2]
[419864308,1775439041142,-161.604585,0.00013196,2]
[419864309,1775439041151,-29250.3322591,0.00013196,2]
[419864310,1775439041161,-14072.3542468,0.00013196,2]
[419864311,1775439041170,-151.0,0.00013196,2]
[419864312,1775439041179,-151.0,0.00013196,2]
[419864313,1775439041189,-151.0,0.00013196,2]
[419864314,1775439041198,-151.0,0.00013196,2]
[419864315,1775439041208,-151.0,0.00013196,2]
[419864316,1775439041218,-151.0,0.00013196,2]
[419864317,1775439041227,-151.0,0.00013196,2]
[419864318,1775439041236,-151.0,0.00013196,2]
[419864319,1775439041246,-288.965689,0.00013196,2]
[419864320,1775439041255,-288.965689,0.00013196,2]
[419864321,1775439041264,-288.965689,0.00013196,2]
[419864322,1775439041274,-288.965689,0.00013196,2]
[419864323,1775439041283,-500.0,0.00013199,2]
[419864324,1775439041292,-590.0,0.00013233,2]
[419864325,1775439041303,-2622.03953177,0.000133,2]
[419864326,1775439041312,-25506.69718378,0.00013321,2]
[419864327,1775439041322,-350.0,0.00013336,2]
[419864328,1775439041331,-350.0,0.0001334,2]
[419864329,1775439041341,-765.3889662,0.00013395,2]
[419864330,1775439041351,-161.604585,0.00013407,2]
[419864331,1775439041360,-151.0,0.00013413,2]
[419864332,1775439041369,-151.0,0.00013499,2]
[419864333,1775439041378,-555.72828961,0.00013499,2]
[419864334,1775439041387,-159.0,0.000135,2]
[419864335,1775439041396,-500.0,0.00013533,2]
[419864336,1775439041406,-194.77002159,0.00013533,2]
[419864337,1775439041415,-151.0,0.00013534,2]
[419864338,1775439041424,-151.0,0.00013534,2]
[419864339,1775439041434,-151.0,0.00013534,2]
[419864340,1775439041443,-151.0,0.00013534,2]
[419864341,1775439041452,-151.0,0.00013534,2]
[419864342,1775439041461,-151.0,0.00013534,2]
[419864343,1775439041470,-151.0,0.00013534,2]
[419864344,1775439041479,-151.0,0.00013534,2]
[419864345,1775439041488,-288.965689,0.00013534,2]
[419864346,1775439041497,-288.965689,0.00013534,2]
[419864347,1775439041506,-288.965689,0.00013534,2]
[419864348,1775439041515,-288.965689,0.00013534,2]
[419864349,1775439041524,-3000.0,0.00013534,2]
[419864350,1775439041533,-175.47547916,0.00013546,2]
[419864351,1775439041542,-2000.0,0.00013556,2]
[419864352,1775439041551,-350.0,0.0001358,2]
[419864353,1775439041560,-500.0,0.00013621,2]